bitfinex/quotes_ETHUSD_20241215
["timestamp","ask_amount","ask_price","bid_price","bid_amount"]
[1734288208200,0.88771612,3897.6,3896.9,0.7581]
[1734288209967,2.56562,3897.7,3896.9,0.7581]
[1734288210302,0.03083467,3897.6,3896.9,0.7581]
[1734288211701,0.03083467,3897.6,3896.9,1.13391]
[1734288212610,0.03083467,3897.6,3896.9,0.7581]
[1734288212768,3.64048788,3897.9,3896.9,0.7581]
[1734288212968,0.03092208,3897.5,3896.9,0.7581]
[1734288213302,0.03087681,3897.4,3896.9,0.7581]
[1734288213503,3.64048788,3897.9,3896.9,0.7581]
[1734288213675,0.03083155,3897.3,3896.9,0.7581]
[1734288213872,3.64048788,3897.9,3897.0,0.8308]
[1734288214065,0.03078628,3897.2,3897.0,0.8308]
[1734288214289,2.56548,3897.9,3897.0,0.8308]
[1734288214482,0.03074101,3897.1,3897.0,3.0]
[1734288214686,1.07500788,3898.1,3897.0,3.5898564]
[1734288214985,0.03093057,3897.1,3897.0,4.4206564]
[1734288215186,2.56533,3898.2,3897.1,0.8308]
[1734288215385,0.88714585,3898.1,3897.1,0.8308]
[1734288215639,0.9185385,3898.1,3897.1,0.8308]
[1734288215842,0.9185385,3898.1,3897.2,0.73192204]
[1734288215843,0.03139265,3898.1,3897.2,0.73192204]
[1734288215996,0.03139265,3898.1,3897.3,0.8308]
[1734288216705,2.59676265,3898.1,3897.3,0.8308]
[1734288216907,0.03139265,3898.1,3897.3,0.8308]
[1734288217109,1.07500788,3898.3,3897.3,0.8308]
[1734288217304,0.0313474,3898.0,3897.3,0.8308]
[1734288217516,0.60033997,3898.2,3897.3,0.8308]
[1734288217716,0.03130214,3897.9,3897.3,0.8308]
[1734288217917,2.56543,3898.0,3897.3,0.8308]
[1734288218234,0.03125689,3897.8,3897.3,0.8308]
[1734288218446,0.03130214,3897.9,3897.3,0.8308]
[1734288218609,0.03121164,3897.7,3897.3,0.8308]
[1734288218932,2.56543,3898.0,3897.3,0.8308]
[1734288219139,0.03116638,3897.6,3897.3,0.8308]
[1734288219337,2.56555,3897.8,3897.3,0.8308]
[1734288219695,0.03121164,3897.7,3897.3,0.8308]
[1734288219902,2.56555,3897.8,3897.3,0.8308]
[1734288220121,0.03116638,3897.6,3897.3,0.8308]
[1734288220328,0.03121164,3897.7,3897.3,0.8308]
[1734288220531,0.03112112,3897.5,3897.3,0.8308]
[1734288220733,2.56555,3897.8,3897.3,0.8308]
[1734288220928,0.03107585,3897.4,3897.3,0.8308]
[1734288221092,2.56555,3897.8,3897.3,0.8308]
[1734288221293,0.03107585,3897.4,3897.3,0.8308]
[1734288221510,2.56563,3897.7,3897.3,0.8308]
[1734288221738,0.03116638,3897.6,3897.3,0.8308]
[1734288222798,2.5655,3897.9,3897.3,0.8308]
[1734288223333,0.03125689,3897.8,3897.3,0.8308]
[1734288223539,2.56564,3897.7,3897.3,0.8308]
[1734288223833,0.03116638,3897.6,3897.3,0.8308]
[1734288224837,0.03116638,3897.6,3896.8,0.8166]
[1734288225134,2.56564,3897.7,3896.8,0.8166]
[1734288226142,2.56569,3897.6,3896.8,0.8166]
[1734288226506,0.03122065,3897.5,3896.8,0.8166]
[1734288228384,0.03122065,3897.5,3896.8,1.34933294]
[1734288230785,2.56581,3897.4,3896.8,1.34933294]
[1734288230983,2.56581,3897.4,3896.8,0.8166]
[1734288231281,0.03121067,3897.3,3896.8,0.8166]
[1734288232292,2.56581,3897.4,3896.8,0.8166]
[1734288232489,0.03116541,3897.2,3896.8,0.8166]
[1734288232653,2.56581,3897.4,3896.8,0.8166]
[1734288232841,0.03112014,3897.1,3896.8,0.8166]
[1734288233043,2.56581,3897.4,3896.8,0.8166]
[1734288233243,0.03107487,3897.0,3896.8,0.8166]
[1734288233439,2.56581,3897.4,3896.8,0.8166]
[1734288233644,0.03102959,3896.9,3896.8,0.8166]
[1734288233861,2.56581,3897.4,3896.8,0.8166]
[1734288234066,0.03102959,3896.9,3896.8,0.8166]
[1734288234275,2.56581,3897.4,3896.8,0.8166]
[1734288234492,0.03102959,3896.9,3896.8,0.8166]
[1734288234657,2.56581,3897.4,3896.8,0.8166]
[1734288235004,0.03102959,3896.9,3896.8,0.8166]
[1734288235287,2.56581,3897.4,3896.8,0.8166]
[1734288235584,0.03102959,3896.9,3896.8,0.8166]
[1734288235753,2.56581,3897.4,3896.8,0.8166]
[1734288236089,0.03121067,3897.3,3896.8,0.8166]
[1734288248431,0.88919297,3897.2,3896.8,0.8166]
[1734288248580,0.03121067,3897.3,3896.8,0.8166]
[1734288248783,0.03099217,3897.1,3896.8,0.8166]
[1734288248983,0.03103744,3897.2,3896.8,0.8166]
[1734288249222,0.0309469,3897.0,3896.8,0.8166]
[1734288249424,1.07500788,3897.3,3896.8,0.8166]
[1734288249633,0.03090162,3896.9,3896.8,0.8166]
[1734288249819,1.07500788,3897.3,3896.8,0.8166]
[1734288250039,0.03090162,3896.9,3896.8,0.8166]
[1734288250531,1.07500788,3897.3,3896.8,0.8166]
[1734288250682,0.03090162,3896.9,3896.8,0.8166]
[1734288250881,1.07500788,3897.3,3896.8,1.29907259]
[1734288251084,0.88953777,3897.2,3897.1,0.7932]
[1734288251387,1.07500788,3897.8,3897.2,0.7932]
[1734288251585,0.88944525,3897.7,3897.3,1.00812589]
[1734288251817,1.07500788,3897.8,3897.4,0.7932]
[1734288252028,0.88943265,3897.7,3897.4,0.7932]
[1734288252229,1.07500788,3897.8,3897.4,0.7932]
[1734288252541,1.07500788,3897.9,3897.4,0.7932]
[1734288252739,0.88940916,3897.8,3897.4,0.7932]
[1734288253033,1.07500788,3898.0,3897.4,0.7932]
[1734288253336,3.29853493,3897.9,3897.4,0.7932]
[1734288253504,0.88941082,3897.8,3897.4,0.7932]
[1734288253702,1.07500788,3898.0,3897.4,0.7932]
[1734288253893,2.22340181,3897.9,3897.4,0.7932]
[1734288254231,0.88936072,3897.8,3897.4,0.7932]
[1734288254531,1.07500788,3898.0,3897.4,0.7932]
[1734288254740,2.22326683,3897.9,3897.4,0.7932]
[1734288254890,0.88930673,3897.8,3897.4,1.33691999]
[1734288255092,1.07500788,3898.0,3897.4,1.33691999]
[1734288255297,0.0303144,3897.7,3897.4,1.33691999]
[1734288255487,2.22326711,3897.9,3897.4,1.33691999]
[1734288255488,1.07500788,3898.0,3897.5,0.8031]
[1734288255702,0.03026914,3897.6,3897.5,0.8031]
[1734288255992,1.07500788,3898.0,3897.5,1.29518759]
[1734288256193,0.03026914,3897.6,3897.5,0.8031]
[1734288256392,1.07500788,3898.0,3897.5,0.8031]
[1734288256630,0.03026914,3897.6,3897.5,0.8031]
[1734288256849,1.07500788,3898.0,3897.5,0.8031]
[1734288256994,0.03026914,3897.6,3897.5,0.8031]
[1734288257192,0.03026914,3897.6,3897.5,1.24080059]
[1734288257419,1.07500788,3898.1,3897.6,0.8031]
[1734288257630,2.22289183,3898.0,3897.6,0.8031]
[1734288257831,0.03052599,3898.0,3897.6,0.8031]
[1734288258014,1.07500788,3898.2,3897.6,0.8031]
[1734288258237,2.22285795,3898.1,3897.6,0.8031]
[1734288258410,0.88914318,3898.0,3897.6,0.8031]
[1734288258606,0.03057124,3898.1,3897.6,1.28457065]
[1734288258847,0.02992074,3897.9,3897.6,1.28457065]
[1734288259006,0.02996599,3898.0,3897.6,1.28457065]
[1734288259519,0.02992074,3897.9,3897.6,1.28457065]
[1734288259736,1.07500788,3898.2,3897.6,1.28457065]
[1734288259924,0.02987549,3897.8,3897.6,1.28457065]
[1734288260122,1.07500788,3898.2,3897.7,0.42880512]
[1734288260337,0.02983023,3897.7,3897.6,0.8031]
[1734288260518,0.88898776,3898.1,3897.6,0.8031]
[1734288260519,1.07500788,3898.2,3897.6,0.8031]
[1734288260732,0.02983023,3897.7,3897.6,0.8031]
[1734288260921,1.07500788,3898.2,3897.6,0.8031]
[1734288261250,0.02983023,3897.7,3897.6,0.8031]
[1734288261424,1.07500788,3898.3,3897.6,1.28457065]
[1734288261636,0.88880111,3898.2,3897.6,1.28457065]
[1734288261832,0.9188576,3898.2,3897.6,1.28457065]
[1734288262144,0.03005649,3898.2,3897.6,1.28457065]
[1734288262912,1.07500788,3898.4,3897.6,1.28457065]
[1734288263136,0.03001124,3898.1,3897.6,1.28457065]
[1734288263347,0.03001124,3898.1,3897.6,2.29269654]
[1734288263547,1.07500788,3898.4,3897.6,2.29269654]
[1734288263711,0.02931984,3898.0,3897.6,1.81122589]
[1734288263913,1.07500788,3898.4,3897.6,1.81122589]
[1734288264235,2.2215902,3898.3,3897.6,1.81122589]
[1734288264437,0.88863608,3898.2,3897.6,1.81122589]
[1734288264624,0.02941033,3898.2,3897.6,1.81122589]
[1734288264824,1.07500788,3898.4,3897.6,1.81122589]
[1734288265028,2.25085338,3898.3,3897.6,1.81122589]
[1734288265236,0.02945558,3898.3,3897.6,1.81122589]
[1734288267873,0.02945558,3898.3,3897.7,0.7508]
[1734288268767,1.07500788,3898.5,3897.7,0.7508]
[1734288269009,0.02952873,3898.2,3897.7,0.7508]
[1734288269192,1.81525643,3898.5,3897.7,0.7508]
[1734288269390,0.02948348,3898.1,3897.7,0.7508]
[1734288269705,0.02943824,3898.0,3897.7,0.7508]
[1734288269907,1.07500788,3898.5,3897.7,0.7508]
[1734288270120,0.02939298,3897.9,3897.7,0.7508]
[1734288270298,1.07500788,3898.5,3897.7,0.7508]
[1734288270497,0.02934773,3897.8,3897.7,0.7508]
[1734288270670,1.07500788,3898.5,3897.7,0.7508]
[1734288270864,0.02934773,3897.8,3897.7,0.7508]
[1734288271123,1.07500788,3898.5,3897.7,1.18327059]
[1734288271269,0.02934773,3897.8,3897.7,0.7508]
[1734288271604,1.07500788,3898.5,3897.7,0.7508]
[1734288271809,0.02934773,3897.8,3897.7,0.7508]
[1734288271969,1.07500788,3898.5,3897.7,0.7508]
[1734288272171,0.02934773,3897.8,3897.7,0.7508]
[1734288272476,1.07500788,3898.5,3897.7,1.18326559]
[1734288272698,0.02934773,3897.8,3897.7,0.7508]
[1734288272887,1.07500788,3898.5,3897.7,0.7508]
[1734288273106,0.02934773,3897.8,3897.7,0.7508]
[1734288273284,1.07500788,3898.5,3897.7,0.7508]
[1734288273468,0.02934773,3897.8,3897.7,0.7508]
[1734288273784,1.07500788,3898.5,3897.7,0.7508]
[1734288273971,0.02934773,3897.8,3897.7,0.7508]
[1734288274171,1.07500788,3898.5,3897.7,0.7508]
[1734288274409,0.02934773,3897.8,3897.7,0.7508]
[1734288274566,1.07500788,3898.5,3897.7,0.7508]
[1734288274772,0.02934773,3897.8,3897.7,0.7508]
[1734288274965,1.07500788,3898.5,3897.7,1.18327259]
[1734288275195,0.02934773,3897.8,3897.7,0.7508]
[1734288275398,1.07500788,3898.5,3897.7,0.7508]
[1734288275583,0.02934773,3897.8,3897.7,0.7508]
[1734288275796,3.64006788,3898.6,3897.7,0.7508]
[1734288275969,0.02934773,3897.8,3897.7,0.7508]
[1734288276316,0.02934773,3897.8,3897.7,1.18326659]
[1734288276528,3.64006788,3898.6,3897.7,1.18326659]
[1734288276741,0.02934773,3897.8,3897.7,0.7508]
[1734288276895,1.07500788,3898.5,3897.7,0.7508]
[1734288277095,0.02934773,3897.8,3897.7,0.7508]
[1734288277297,0.8181,3898.3,3897.7,0.7508]
[1734288277497,0.02934773,3897.8,3897.7,0.7508]
[1734288277697,0.8181,3898.3,3897.7,0.7508]
[1734288278012,0.02934773,3897.8,3897.7,0.7508]
[1734288278211,0.8181,3898.3,3897.7,0.7508]
[1734288278405,0.02934773,3897.8,3897.7,0.7508]
[1734288278604,0.8181,3898.3,3897.7,0.7508]
[1734288278812,0.02934773,3897.8,3897.7,0.7508]
[1734288279024,0.8181,3898.3,3897.7,0.7508]
[1734288279522,0.02952873,3898.2,3897.7,0.7508]
[1734288280493,1.07500788,3898.4,3897.7,0.7508]
[1734288280821,0.02948348,3898.1,3897.7,0.7508]
[1734288281028,2.56509,3898.5,3897.7,0.7508]
[1734288281029,3.64009788,3898.5,3897.7,0.7508]
[1734288281194,0.02943824,3898.0,3897.7,0.7508]
[1734288281396,1.07500788,3898.4,3897.7,0.7508]
[1734288281595,0.02939298,3897.9,3897.7,0.7508]
[1734288281797,1.07500788,3898.4,3897.7,0.7508]
[1734288281999,0.02934773,3897.8,3897.7,0.7508]
[1734288282234,1.07500788,3898.4,3897.7,0.7508]
[1734288282545,3.89991378,3898.4,3897.7,0.7508]
[1734288282712,0.91768395,3898.3,3897.7,0.7508]
[1734288282913,0.02957398,3898.3,3897.7,0.7508]
[1734288283946,2.91513197,3898.9,3898.0,0.7884]
[1734288283947,1.07500788,3898.7,3898.0,0.7884]
[1734288284183,0.02959033,3898.2,3898.0,0.7884]
[1734288284383,1.07500788,3898.8,3898.0,0.7884]
[1734288284584,0.02954508,3898.1,3898.0,0.7884]
[1734288284785,1.07500788,3898.8,3898.0,0.7884]
[1734288285081,2.22017758,3898.7,3898.0,0.7884]
[1734288285282,0.91784232,3898.6,3898.0,0.7884]
[1734288285453,0.02977129,3898.6,3898.0,0.7884]
[1734288285668,1.07500788,3898.8,3898.0,0.7884]
[1734288285854,2.25006043,3898.7,3898.0,0.7884]
[1734288286068,0.88807104,3898.6,3898.0,0.7884]
[1734288286247,0.91790863,3898.6,3898.0,0.7884]
[1734288286450,0.02983759,3898.6,3898.0,0.7884]
[1734288286659,3.63990788,3898.8,3898.0,0.7884]
[1734288286886,2.24998664,3898.7,3898.0,0.7884]
[1734288287182,0.02988283,3898.7,3898.0,0.7884]
[1734288287587,0.88804217,3898.6,3898.0,0.7884]
[1734288288005,0.02979236,3898.5,3898.0,0.7884]
[1734288288604,3.63990788,3898.8,3898.0,0.7884]
[1734288288802,0.02974712,3898.4,3898.0,0.7884]
[1734288289098,0.02970187,3898.3,3898.0,1.26805259]
[1734288289298,3.63990788,3898.8,3898.0,1.26805259]
[1734288289498,2.25011648,3898.7,3898.0,0.7884]
[1734288289799,0.88809346,3898.6,3898.0,0.7884]
[1734288290303,0.02979236,3898.5,3898.0,0.7884]
[1734288290664,3.63990788,3898.8,3898.0,0.7884]
[1734288290860,4.81532518,3898.7,3898.0,0.7884]
[1734288291060,0.88819294,3898.6,3898.0,0.7884]
[1734288291257,0.02979236,3898.5,3898.0,0.7884]
[1734288291528,3.63996788,3898.7,3898.0,0.7884]
[1734288291682,0.91813075,3898.6,3898.0,0.7884]
[1734288292000,0.02983759,3898.6,3898.0,0.7884]
[1734288293624,0.88844398,3898.5,3898.0,0.7884]
[1734288294038,0.02974712,3898.4,3898.0,0.7884]
[1734288294371,1.07500788,3898.6,3898.0,0.7884]
[1734288294572,0.02970187,3898.3,3898.0,0.7884]
[1734288294776,1.07500788,3898.6,3898.0,0.7884]
[1734288294977,0.02965663,3898.2,3897.7,0.8082]
[1734288295368,0.02961138,3898.1,3897.7,0.8082]
[1734288295834,1.07500788,3898.3,3897.7,0.8082]
[1734288296010,0.02969876,3898.0,3897.7,0.8082]
[1734288296181,1.07500788,3898.3,3897.7,0.8082]
[1734288296376,0.02965351,3897.9,3897.7,0.8082]
[1734288296577,1.07500788,3898.3,3897.7,1.28983259]
[1734288296810,0.02960826,3897.8,3897.7,1.28983259]
[1734288297425,1.07500788,3898.3,3897.7,1.28983259]
[1734288297629,0.02960826,3897.8,3897.7,1.28983259]
[1734288297810,1.07500788,3898.3,3897.7,1.28983259]
[1734288298137,2.22366633,3898.2,3897.7,1.28983259]
[1734288298286,0.02974401,3898.1,3897.7,1.28983259]
[1734288298483,1.07500788,3898.3,3897.7,1.28983259]
[1734288298687,2.25355796,3898.2,3897.7,1.28983259]
[1734288298983,0.88950748,3898.1,3897.7,1.28983259]
[1734288299219,0.02978926,3898.2,3897.7,1.28983259]
[1734288299424,0.02969876,3898.0,3897.8,0.63679025]
[1734288299622,0.02974401,3898.1,3897.8,0.63679025]
[1734288299837,0.02965351,3897.9,3897.8,0.63679025]
[1734288300035,1.07500788,3898.3,3897.8,0.63679025]
[1734288300335,1.07500788,3898.3,3897.7,1.28983259]
[1734288300336,0.88952306,3898.2,3897.7,1.28983259]
[1734288300540,0.02978926,3898.2,3897.8,1.00812589]
[1734288300676,0.02978926,3898.2,3898.1,1.78282589]
[1734288300880,1.07500788,3898.4,3898.1,1.78282589]
[1734288301183,0.02973716,3898.2,3898.1,1.78282589]
[1734288301424,1.07500788,3898.4,3898.1,1.78282589]
[1734288301636,0.02973716,3898.2,3898.1,1.78282589]
[1734288302079,1.07500788,3898.4,3898.1,1.78282589]
[1734288302426,0.91936819,3898.3,3898.1,1.78282589]
[1734288302623,0.0297824,3898.3,3898.1,1.78282589]
[1734288304516,0.8896638,3898.2,3898.1,1.78282589]
[1734288304724,0.0297824,3898.3,3898.1,1.78282589]
[1734288304927,0.02973716,3898.2,3898.1,1.78282589]
[1734288305844,0.02973716,3898.2,3898.1,4.52645848]
[1734288306142,2.6898056,3899.2,3898.1,4.52645848]
[1734288306143,1.07500788,3899.0,3898.5,0.7747]
[1734288306444,1.07500788,3899.1,3898.8,1.00812589]
[1734288306591,0.88921902,3899.0,3898.8,1.00812589]
[1734288306797,1.07500788,3899.1,3898.8,1.00812589]
[1734288307039,0.88921879,3899.0,3898.8,1.00812589]
[1734288307341,1.07500788,3899.2,3898.8,1.00812589]
[1734288307544,0.88900648,3899.1,3898.8,1.00812589]
[1734288307745,1.07500788,3899.2,3898.8,1.00812589]
[1734288308041,0.88899007,3899.1,3898.8,1.00812589]
[1734288308220,1.07500788,3899.2,3898.8,1.00812589]
[1734288308427,0.88899447,3899.1,3898.8,1.00812589]
[1734288308748,1.07500788,3899.3,3898.8,1.00812589]
[1734288308888,2.2219973,3899.2,3898.8,1.00812589]
[1734288309091,0.88879892,3899.1,3898.8,1.00812589]
[1734288309293,1.07500788,3899.3,3898.8,1.00812589]
[1734288309601,2.22160457,3899.2,3898.8,1.00812589]
[1734288309816,1.07500788,3899.3,3898.8,1.00812589]
[1734288310038,0.88861775,3899.2,3898.8,1.00812589]
[1734288310195,1.85550788,3899.4,3898.8,1.00812589]
[1734288310555,2.22153303,3899.3,3898.8,1.00812589]
[1734288311127,2.22153303,3899.3,3898.8,1.48640848]
[1734288311325,1.07500788,3899.4,3898.9,0.7747]
[1734288311527,0.88830313,3899.3,3898.9,0.7747]
[1734288311858,1.07500788,3899.5,3898.9,0.7747]
[1734288312000,3.29572898,3899.4,3898.9,0.7747]
[1734288312198,0.88828844,3899.3,3898.9,1.00081085]
[1734288312446,3.63954788,3899.4,3898.6,0.7747]
[1734288312596,2.22044372,3899.3,3898.6,0.7747]
[1734288313624,2.56454,3899.4,3898.6,0.7747]
[1734288313824,0.88807325,3899.3,3898.6,0.7747]
[1734288315359,0.0302416,3899.2,3898.6,0.7747]
[1734288315516,0.0302416,3899.2,3898.6,1.304626]
[1734288315844,2.56489,3898.8,3898.3,0.795]
[1734288316048,2.56489,3898.8,3898.0,1.80312589]
[1734288316365,0.03037061,3898.7,3898.0,1.80312589]
[1734288317075,2.56511,3898.5,3897.7,1.80312589]
[1734288317425,0.03023489,3898.4,3897.7,1.80312589]
[1734288320665,0.7644,3898.6,3897.7,1.80312589]
[1734288320666,0.7644,3898.6,3898.0,1.00812589]
[1734288320834,0.02998605,3898.3,3898.0,1.00812589]
[1734288321170,0.0299408,3898.2,3898.0,1.00812589]
[1734288321372,0.7644,3898.6,3898.0,1.00812589]
[1734288321572,0.02989556,3898.1,3898.0,1.00812589]
[1734288321725,0.7644,3898.6,3898.0,1.00812589]
[1734288321961,0.03007653,3898.5,3898.0,1.00812589]
[1734288324874,0.02698824,3898.5,3898.0,1.00812589]
[1734288325226,0.02698824,3898.5,3898.3,1.00812589]
[1734288325473,3.38816,3899.0,3898.3,1.00812589]
[1734288325474,4.46316788,3899.0,3898.3,1.00812589]
[1734288325637,0.02994255,3898.4,3898.3,1.00812589]
[1734288325983,1.07500788,3898.9,3898.3,1.00812589]
[1734288326126,0.02994255,3898.4,3898.3,1.00812589]
[1734288326474,1.07500788,3898.9,3898.3,1.00812589]
[1734288326626,0.02994255,3898.4,3898.3,1.00812589]
[1734288326976,1.07500788,3898.9,3898.3,1.00812589]
[1734288327265,1.07500788,3898.9,3898.1,0.7711]
[1734288327266,0.02994255,3898.4,3898.1,0.7711]
[1734288327574,1.07500788,3898.9,3898.1,1.50557459]
[1734288327732,0.0298973,3898.3,3898.1,0.7711]
[1734288327925,1.07500788,3898.9,3898.1,0.7711]
[1734288328128,2.25122674,3898.8,3898.1,0.7711]
[1734288328327,0.8884413,3898.7,3898.1,0.7711]
[1734288328529,0.03003302,3898.6,3898.1,0.7711]
[1734288328859,0.03003302,3898.6,3898.1,1.50557459]
[1734288329057,1.07500788,3898.8,3898.1,1.50557459]
[1734288329248,0.02998778,3898.5,3898.1,1.50557459]
[1734288329444,1.07500788,3898.8,3898.1,1.50557459]
[1734288329690,0.02994255,3898.4,3898.1,0.7711]
[1734288329931,1.07500788,3898.8,3898.1,0.7711]
[1734288330229,0.0298973,3898.3,3898.1,0.7711]
[1734288330429,1.07500788,3898.8,3898.1,0.7711]
[1734288330629,0.02985206,3898.2,3898.1,0.7711]
[1734288330930,1.07500788,3898.8,3898.1,0.7711]
[1734288331091,0.88856785,3898.7,3898.1,0.7711]
[1734288331294,0.03007826,3898.7,3898.1,0.7711]
[1734288332827,0.8234,3898.5,3897.9,1.00812589]
[1734288333176,0.02994255,3898.4,3897.9,1.00812589]
[1734288333598,0.02994255,3898.4,3897.6,1.00812589]
[1734288335047,0.02994255,3898.4,3897.6,1.90227245]
[1734288335251,0.02994255,3898.4,3898.0,0.7687]
[1734288335455,1.07500788,3898.8,3898.2,1.00812589]
[1734288335603,0.02974577,3898.3,3898.2,1.00812589]
[1734288336151,1.07500788,3898.9,3898.2,1.00812589]
[1734288336354,2.22131535,3898.8,3898.2,1.00812589]
[1734288336651,0.9184981,3898.8,3898.3,0.7687]
[1734288336803,0.02997196,3898.8,3898.3,0.7687]
[1734288337297,0.02997196,3898.8,3898.5,1.00812589]
[1734288337502,0.7692,3899.2,3898.5,1.00812589]
[1734288337503,1.07500788,3899.2,3898.5,1.00812589]
[1734288337748,2.22119278,3899.1,3898.5,1.00812589]
[1734288337947,0.03015974,3899.1,3898.6,0.43419659]
[1734288338802,1.07500788,3899.3,3898.6,0.43419659]
[1734288339021,0.03019975,3899.0,3898.6,0.43419659]
[1734288339206,1.07500788,3899.3,3898.6,0.43419659]
[1734288339565,0.03015452,3898.9,3898.6,0.43419659]
[1734288339701,1.07500788,3899.3,3898.7,0.40074625]
[1734288340045,2.25124891,3899.2,3898.7,0.40074625]
[1734288340248,0.0302902,3899.2,3898.7,0.40074625]
[1734288340546,0.88838574,3899.1,3898.7,0.40074625]
[1734288340728,0.0302902,3899.2,3898.7,0.40074625]
[1734288340930,0.03019975,3899.0,3898.7,0.40074625]
[1734288341112,0.03015452,3898.9,3898.8,0.94798721]
[1734288341634,1.07500788,3899.3,3898.8,0.94798721]
[1734288341836,0.03015452,3898.9,3898.8,0.94798721]
[1734288342039,1.07500788,3899.4,3898.8,0.94798721]
[1734288342340,0.03015452,3898.9,3898.5,0.8071]
[1734288342505,1.07500788,3899.1,3898.5,0.8071]
[1734288342701,0.03010929,3898.8,3898.5,0.8071]
[1734288343026,0.03006405,3898.7,3898.5,0.8071]
[1734288343226,1.07500788,3899.1,3898.5,0.8071]
[1734288343540,0.03001882,3898.6,3898.5,0.8071]
[1734288343834,0.03001882,3898.6,3898.5,1.34004865]
[1734288344041,1.07500788,3899.1,3898.5,1.34004865]
[1734288344216,0.03001882,3898.6,3898.5,0.8071]
[1734288344535,1.07500788,3899.1,3898.5,0.8071]
[1734288344745,0.03001882,3898.6,3898.5,0.8071]
[1734288344943,2.56442,3899.6,3898.5,0.8071]
[1734288344944,1.07500788,3899.2,3898.5,0.8071]
[1734288345107,3.29633935,3899.1,3898.5,0.8071]
[1734288345307,0.88853259,3899.0,3898.5,1.59656765]
[1734288345750,0.03015452,3898.9,3898.5,1.59656765]
[1734288346322,1.07500788,3899.1,3898.5,1.59656765]
[1734288346523,0.03010929,3898.8,3898.5,1.59656765]
[1734288346721,1.07500788,3899.1,3898.5,1.59656765]
[1734288346922,0.8885874,3899.0,3898.5,1.59656765]
[1734288347115,1.07500788,3899.2,3898.6,0.86841442]
[1734288347451,3.2964636,3899.1,3898.6,0.86841442]
[1734288347607,3.2964636,3899.1,3898.3,4.08757654]
[1734288347608,3.01592952,3899.0,3898.3,1.00812589]
[1734288347811,3.29654598,3898.9,3898.2,0.7992]
[1734288348112,3.29654598,3898.8,3898.2,0.7992]
[1734288348451,2.25179159,3898.7,3898.2,0.7992]
[1734288348628,0.88858229,3898.6,3898.2,0.7992]
[1734288348827,0.91879054,3898.6,3898.2,0.7992]
[1734288349030,0.91879054,3898.6,3897.8,1.80732589]
[1734288349031,0.88874917,3898.5,3897.8,1.80732589]
[1734288349227,0.91904478,3898.5,3897.9,3.0]
[1734288349454,0.03029561,3898.5,3897.9,3.0]
[1734288349667,4.17740182,3898.8,3897.8,2.74161022]
[1734288349668,1.07500788,3898.6,3897.8,2.74161022]
[1734288349808,0.03022669,3898.4,3897.8,1.80732589]
[1734288350013,0.88875734,3898.3,3897.8,1.80732589]
[1734288350263,0.88875734,3898.2,3897.8,1.80732589]
[1734288350425,0.91877516,3898.2,3897.8,1.80732589]
[1734288350619,0.8887741,3898.1,3897.8,0.7992]
[1734288350949,0.91874667,3898.1,3897.8,0.7992]
[1734288351108,0.02997257,3898.1,3897.8,0.7992]
[1734288351545,1.07500788,3898.3,3897.8,0.7992]
[1734288351735,0.02992732,3898.0,3897.8,0.7992]
[1734288352050,0.02988207,3897.9,3897.8,0.7992]
[1734288352213,1.07500788,3898.3,3897.8,0.7992]
[1734288352547,0.02988207,3897.9,3897.8,0.7992]
[1734288352713,1.07500788,3898.3,3897.8,0.7992]
[1734288352909,0.02988207,3897.9,3897.8,0.7992]
[1734288353411,1.07500788,3898.3,3897.8,0.7992]
[1734288353614,0.02988207,3897.9,3897.8,0.7992]
[1734288353825,1.07500788,3898.3,3897.8,0.7992]
[1734288354024,0.02988207,3897.9,3897.8,0.7992]
[1734288354313,1.07500788,3898.3,3897.8,0.7992]
[1734288354513,0.02988207,3897.9,3897.8,0.7992]
[1734288354724,1.07500788,3898.3,3897.8,0.7992]
[1734288354919,2.22110621,3898.2,3897.8,0.7992]
[1734288355124,1.07500788,3898.3,3897.8,0.7992]
[1734288355325,0.02997257,3898.1,3897.8,0.7992]
[1734288355545,0.03001782,3898.2,3897.8,0.7992]
[1734288355750,1.07500788,3898.3,3897.8,0.7992]
[1734288355950,1.07500788,3898.3,3897.8,1.80732589]
[1734288356142,0.03001782,3898.2,3897.8,1.80732589]
[1734288356543,1.86940788,3898.5,3897.8,1.80732589]
[1734288356763,0.02997257,3898.1,3897.8,1.80732589]
[1734288356963,1.86940788,3898.5,3897.8,1.80732589]
[1734288357136,0.02992732,3898.0,3897.8,1.80732589]
[1734288357465,0.02988207,3897.9,3897.8,1.80732589]
[1734288357669,1.86940788,3898.5,3897.8,1.80732589]
[1734288357870,0.88838922,3898.4,3897.8,2.03852566]
[1734288358169,0.0301083,3898.4,3898.1,1.00812589]
[1734288358667,0.02979786,3898.3,3898.2,0.7794]
[1734288358826,1.07500788,3898.7,3898.2,0.7794]
[1734288358827,1.07500788,3898.6,3898.2,0.7794]
[1734288359031,0.02979786,3898.3,3898.2,0.7794]
[1734288359228,0.02979786,3898.3,3898.2,0.95815259]
[1734288359455,1.07500788,3898.7,3898.2,0.95815259]
[1734288359683,0.02979786,3898.3,3898.2,0.7794]
[1734288359882,1.07500788,3898.7,3898.2,0.7794]
[1734288360085,0.02979786,3898.3,3898.2,0.7794]
[1734288360389,1.07500788,3898.7,3898.2,0.7794]
[1734288360596,0.02979786,3898.3,3898.2,0.7794]
[1734288360753,1.07500788,3898.7,3898.2,0.95815259]
[1734288360954,2.25126408,3898.6,3898.2,0.7794]
[1734288361196,0.88854008,3898.5,3898.2,0.7794]
[1734288361398,0.91842842,3898.5,3897.5,6.07038184]
[1734288361596,0.02988834,3898.5,3897.7,1.00812589]
[1734288361896,0.88862,3898.4,3897.7,4.00812589]
[1734288362098,0.88862,3898.4,3897.8,1.08418677]
[1734288362269,0.02979786,3898.3,3897.8,1.08418677]
[1734288362471,1.82680788,3898.6,3897.8,1.08418677]
[1734288362672,0.02975262,3898.2,3897.8,1.08418677]
[1734288362872,1.82680788,3898.6,3897.8,1.08418677]
[1734288363197,0.02970737,3898.1,3897.8,1.08418677]
[1734288363359,0.02970737,3898.1,3897.6,0.7634]
[1734288363801,0.02966212,3898.0,3897.6,0.7634]
[1734288364106,1.07500788,3898.3,3897.6,0.7634]
[1734288364255,0.02961687,3897.9,3897.6,0.7634]
[1734288364456,2.56535,3898.1,3897.6,0.7634]
[1734288364760,2.56535,3898.1,3896.8,4.17126653]
[1734288364761,4.78711425,3898.0,3897.1,1.77152589]
[1734288364955,2.25124501,3897.9,3897.1,1.77152589]
[1734288365162,0.88865342,3897.8,3897.1,1.77152589]
[1734288365362,0.029479,3897.7,3897.1,0.7634]